[Event "13th KIIT Festival-A 2022"]
[Site "Bhubaneswar"]
[Date "2022.05.28"]
[Round "9.14"]
[White "Sangma, Rahul"]
[Black "Liyanage, Pesandu Rashmitha"]
[Result "1/2-1/2"]
[ECO "A30"]
[WhiteElo "2232"]
[BlackElo "1730"]
[Annotator "TA"]
[PlyCount "127"]
[EventDate "2022.05.15"]
[EventType "swiss"]
[EventCountry "IND"]
[SourceTitle "playchess.com"]
[Source "ChessBase"]
[SourceQuality "1"]
[TimeControl "5400+30"]

{[%evp 12,127,12,7,36,43,53,53,53,53,48,52,52,47,53,53,53,53,53,54,54,54,58,56,54,47,57,0,7,-20,-20,-54,-66,-66,-58,-73,-72,-72,22,-59,-66,-80,-75,-107,-106,-110,-106,-99,-67,-118,-120,-113,-122,-110,-72,-86,-3,-5,-5,-81,-37,-151,-151,-151,-143,-105,-47,-54,-29,-149,-8,-161,-22,-22,0,0,0,0,0,0,0,0,0,0,0,0,0,0,0,0,0,0,0,0,0,0,0,0,0,0,0,0,0,0,0,0,0,0,0,0,0,0,0,0,0,0,0,0]} 1. Nf3 {[%emt 0:04:04]} c5 {[%emt 0:01:46]} 2. c4 {[%emt 0:00:15]} Nf6 {[%emt 0:00:14]} 3. g3 {[%emt 0:01:53]} b6 {[%emt 0:02:20]} 4. Bg2 {[%emt 0:00:05]} Bb7 {[%emt 0:00:06]} 5. O-O {[%emt 0:00:11]} e6 {[%emt 0:00:25]} 6. b3 {[%emt 0:00:39]} Be7 {[%emt 0:00:16]} 7. Bb2 {[%emt 0:00:03]} d6 {[%emt 0:00:18] A30: Symmetrical English: Double Fianchetto and Hedgehog.} 8. Nc3 {[%emt 0:03:16]} Nbd7 {[%emt 0:00:19]} 9. d4 {[%emt 0:00:56]} cxd4 {[%emt 0:00:08] White is slightly better.} 10. Nxd4 {[%emt 0:00:25]} Bxg2 {[%emt 0:00:37]} 11. Kxg2 {[%emt 0:00:02]} Qc7 {[%emt 0:00:53] Prevents Nc6.} 12. e4 {[%emt 0:00:41]} a6 {[%emt 0:00:27]} 13. f4 {[%emt 0:02:57]} O-O {[%emt 0:03:15]} 14. Qf3 {[%emt 0:00:30] [#]} Rac8 $146 {[%emt 0:12:07]} ({Predecessor:} 14... Rfe8 15. Rae1 Rac8 16. Re2 Rf8 17. Rfe1 Qb7 18. e5 Qxf3+ 19. Nxf3 dxe5 20. fxe5 Ne8 {1-0 (68) Gomes,M (2298)-Sachdev,T (2425) New Delhi 2008}) 15. Rad1 {[%emt 0:02:26]} Nc5 {[%emt 0:06:44]} 16. Rd2 {[%emt 0:02:33]} Qb7 {[%emt 0:06:00][%cal Rc5e4]} 17. Re1 {[%emt 0:08:38]} Rfd8 {[%emt 0:03:45]} 18. g4 {[%emt 0:08:14]} g6 {[%emt 0:10:13]} 19. f5 {[%emt 0:06:54]} (19. b4 $14 Ncd7 20. b5 (20. g5 Nh5 $11)) 19... Nfd7 $11 {[%emt 0:20:11]} 20. fxe6 {[%emt 0:17:50]} fxe6 {[%emt 0:00:08]} 21. e5 {[%emt 0:00:06] [#] Hoping for Qxb7.} Qxf3+ {[%emt 0:02:58]} 22. Nxf3 {[%emt 0:01:49]} Nxe5 {[%emt 0:00:18]} 23. Nxe5 {[%emt 0:02:26]} dxe5 {[%emt 0:00:04]} 24. Red1 {[%emt 0:00:13]} e4 {[%emt 0:02:46]} (24... Rxd2+ $17 25. Rxd2 e4) 25. Ba3 {[%emt 0:00:33]} ({Better is} 25. Rxd8+ $11 Rxd8 26. Rxd8+ Bxd8 27. Ba3) 25... Rxd2+ $15 {[%emt 0:11:25]} 26. Rxd2 {[%emt 0:00:02]} Bf6 {[%emt 0:00:20]} 27. Bxc5 {[%emt 0:07:38]} Bxc3 {[%emt 0:00:09]} 28. Rc2 {[%emt 0:00:01]} bxc5 {[%emt 0:00:33]} (28... Rxc5 $6 29. Rxc3 Kf7 30. Kg3 $11) 29. Rxc3 $17 {[%emt 0:00:02][%mdl 4096] Endgame KR-KR} Rd8 {[%emt 0:00:09]} 30. Kf2 {[%emt 0:05:27]} (30. Re3 $15) 30... Rd2+ {[%emt 0:05:34]} 31. Ke3 {[%emt 0:00:01]} Rxh2 {[%emt 0:00:08]} 32. Kxe4 {[%emt 0:00:02]} Re2+ {[%emt 0:00:24]} ({Much weaker is} 32... Rxa2 $6 33. Ke5 $11) 33. Kf4 {[%emt 0:00:12]} e5+ {[%emt 0:02:37]} ({Of course not} 33... Rxa2 $6 34. Ke5 $15) (33... h6 $17 {...g5+ is the strong threat.} 34. a3 a5) 34. Kf3 $1 $11 {[%emt 0:00:38]} Re1 {[%emt 0:02:07]} 35. a3 {[%emt 0:01:07]} (35. Rc2 $11 {keeps the balance.}) 35... a5 {[%emt 0:00:10]} 36. b4 {[%emt 0:00:12]} (36. Rc2 $15) 36... axb4 {[%emt 0:03:09]} 37. axb4 {[%emt 0:00:01]} cxb4 {[%emt 0:00:07]} 38. Rb3 {[%emt 0:00:01]} Kf7 {[%emt 0:01:03]} ({Black should try} 38... Rf1+ $17 39. Kg3 Kf7 40. Rxb4 Rg1+ 41. Kf3 Kf6) 39. Rxb4 $15 {[%emt 0:00:05]} Kf6 {[%emt 0:00:11] Strongly threatening ...Rf1+.} 40. Rb7 {[%emt 0:04:09]} (40. Rb6+ $11 {was the only way to keep the balance.} Kg5 41. Re6) 40... h6 {[%emt 0:00:44]} (40... Rc1 $17 {White must now prevent ...Rc3+.} 41. Rc7 Rf1+ 42. Ke2 Rf4) 41. Rc7 $2 {[%emt 0:00:54]} (41. Rb6+ $11 {and White has nothing to worry.} Kg5 42. Re6) 41... Kg5 {[%emt 0:01:25]} (41... Rf1+ $19 42. Kg3 Rf4) 42. Rc6 $1 $11 {[%emt 0:00:16] The position is equal.} Rf1+ {[%emt 0:02:08]} 43. Ke4 {[%emt 0:00:02]} Rf4+ {[%emt 0:00:11]} 44. Kxe5 {[%emt 0:00:06][%cal Oc6g6]} Rxg4 {[%emt 0:00:05]} 45. Rc8 {[%emt 0:00:35]} h5 {[%emt 0:00:12] aiming for ...h4.} 46. c5 {[%emt 0:00:33]} Rc4 {[%emt 0:00:12] Threatens to win with ...h4.} 47. c6 {[%emt 0:00:02]} Kg4 {[%emt 0:00:22]} 48. Kd6 {[%emt 0:00:36]} g5 {[%emt 0:00:15] And now ...Kh3 would win.} 49. Ra8 {[%emt 0:00:24]} h4 {[%emt 0:01:17]} 50. c7 {[%emt 0:00:01][%cal Oa8a4]} Rxc7 {[%emt 0:03:14]} 51. Kxc7 {[%emt 0:00:05] KR-KPP} h3 {[%emt 0:00:13]} 52. Rh8 {[%emt 0:06:25]} Kg3 {[%emt 0:00:26]} 53. Kd6 {[%emt 0:00:01]} g4 {[%emt 0:00:23]} 54. Ke5 {[%emt 0:00:01]} Kg2 {[%emt 0:01:21]} 55. Kf4 {[%emt 0:00:05]} g3 {[%emt 0:00:17]} 56. Rg8 {[%emt 0:00:02]} h2 {[%emt 0:00:33]} 57. Rxg3+ {[%emt 0:00:57] KR-KP} Kf2 {[%emt 0:00:08]} 58. Rh3 {[%emt 0:01:11]} Kg2 {[%emt 0:00:07]} 59. Rg3+ {[%emt 0:00:01]} Kf2 {[%emt 0:00:01]} 60. Ra3 {[%emt 0:00:07] Intending Ra2+ and mate.} h1=Q {[%emt 0:00:14]} 61. Ra2+ {[%emt 0:00:02]} Kg1 {[%emt 0:00:37] ( -> ...Qh6+)} 62. Ra1+ {[%emt 0:00:01]} Kg2 {[%emt 0:00:03]} 63. Rxh1 {[%emt 0:00:06]} Kxh1 {[%emt 0:00:05]} 64. Ke4 {[%emt 0:22:40] Weighted Error Value: White=0.23 (precise) /Black=0.20 (precise)} 1/2-1/2

[Event "13th KIIT Festival-A 2022"]
[Site "Bhubaneswar"]
[Date "2022.05.28"]
[Round "9.15"]
[White "Ankit Ray"]
[Black "Abdyjapar, Asyl"]
[Result "1/2-1/2"]
[ECO "E63"]
[WhiteElo "1932"]
[BlackElo "2346"]
[Annotator "TA"]
[PlyCount "94"]
[EventDate "2022.05.15"]
[EventType "swiss"]
[EventCountry "IND"]
[SourceTitle "playchess.com"]
[Source "ChessBase"]
[SourceQuality "1"]
[TimeControl "5400+30"]

{[%evp 25,94,32,41,36,18,6,30,-8,17,0,27,0,13,2,9,-18,-13,-20,-17,-17,-8,-23,-16,-27,7,0,0,0,58,59,57,47,47,47,65,48,50,46,54,25,50,14,13,8,44,12,118,118,179,163,185,159,153,158,168,133,133,141,134,141,141,141,141,141,159,159,195,142,123,0,275]} 1. d4 {[%emt 1:31:00]} Nf6 {[%emt 1:31:00]} 2. c4 {[%emt 0:00:30]} g6 {[%emt 0:00:30]} 3. g3 {[%emt 0:00:30]} Bg7 {[%emt 0:00:30]} 4. Bg2 {[%emt 0:00:30]} O-O {[%emt 0:00:30]} 5. Nc3 {[%emt 0:00:30]} d6 {[%emt 0:00:30]} 6. Nf3 {[%emt 0:00:30]} Nc6 {[%emt 0:00:30]} 7. O-O {[%emt 0:00:30]} a6 {[%emt 0:00:30]} 8. e4 {[%emt 0:00:30]} Bg4 {[%emt 0:00:30]} 9. h3 {[%emt 0:00:30]} Bxf3 {[%emt 0:00:30]} 10. Bxf3 {[%emt 0:00:30]} Nd7 {[%emt 0:00:30]} 11. Be3 {[%emt 0:00:30]} e5 {[%emt 0:00:30]} 12. d5 {[%emt 0:00:30]} Nd4 {[%emt 0:00:30]} 13. Bg2 {[%emt 0:00:30]} c5 {[%emt 0:00:30]} 14. dxc6 $1 {[%emt 0:00:30] E63: King's Indian: Fianchetto: Panno Variation with 7...a6.} bxc6 {[%emt 0:00:30]} 15. Ne2 {[%emt 0:00:30][%cal Re2d4]} Qb6 {[%emt 0:00:30]} 16. Qd2 {[%emt 0:00:30] White has an edge.} Rfb8 {[%emt 0:00:30]} 17. b3 {[%emt 0:00:30]} Nf8 {[%emt 0:00:30][%cal Bd7f8,Bf8e6,Be6d4][%mdl 32]} (17... a5 $5 {[%cal Ra5a4]}) 18. Rad1 {[%emt 0:00:30][%cal Re2d4]} Nfe6 {[%emt 0:00:30] [#]} 19. Kh1 $146 {[%emt 0:00:30]} ({Predecessor:} 19. f4 Qb4 20. f5 Qxd2 21. Rxd2 Nxe2+ 22. Rxe2 Nd4 23. Bxd4 exd4 24. e5 Bxe5 25. Bxc6 {0-1 (40) Kebbedies,F (1828)-Puccini,J (2322) Brisbane 2017}) 19... Qc7 {[%emt 0:00:30]} 20. f4 {[%emt 0:00:30]} Nxe2 {[%emt 0:00:30]} 21. Qxe2 {[%emt 0:00:30]} c5 {[%emt 0:00:30]} 22. f5 {[%emt 0:00:30]} Nd4 {[%emt 0:00:30]} 23. Qg4 {[%emt 0:00:30]} a5 {[%emt 0:00:30]} 24. h4 {[%emt 0:00:30]} Qe7 {[%emt 0:00:30]} (24... a4 $5 {[%cal Ra4b3]}) 25. Rd2 {[%emt 0:00:30][%cal Of5f6,Bd1d2,Bd2f2,Bf2f6][%mdl 32]} a4 {[%emt 0:00:30]} 26. bxa4 {[%emt 0:00:30]} Rxa4 {[%emt 0:00:30]} (26... Qe8 $11) 27. f6 {[%emt 0:00:30]} Bxf6 {[%emt 0:00:30] [#] aiming for ...h5.} 28. Rdf2 {[%emt 0:00:30]} h5 {[%emt 0:00:30]} 29. Qd1 {[%emt 0:00:30]} Ra3 {[%emt 0:00:30]} 30. Bxd4 {[%emt 0:00:30]} cxd4 {[%emt 0:00:30]} 31. Rxf6 {[%emt 0:00:30]} Rxg3 {[%emt 0:00:30]} 32. Qe1 {[%emt 0:00:30]} Ra3 {[%emt 0:00:30]} 33. Qf2 {[%emt 0:00:30][%cal Rf6f7]} (33. Qc1 $5 {[%cal Rc1a3]} Rxa2 34. Qg5 $14) 33... Rb7 {[%emt 0:00:30]} 34. Qd2 {[%emt 0:00:30]} Re3 {[%emt 0:00:30][%cal Ob7b1]} (34... Rb1 $5) 35. Qa5 {[%emt 0:00:30]} Kg7 {[%emt 0:00:30]} (35... Rb1 $11 {keeps the balance.} 36. Rxf7 (36. Rxb1 Qxf6 37. Rf1 Qxh4+ 38. Kg1 Qe7 $17) 36... Rxf1+ 37. Rxf1 Qxh4+ 38. Kg1 Qe7) 36. Qd5 $16 {[%emt 0:00:30]} ({Don't take} 36. Rxf7+ $6 Qxf7 37. Rxf7+ Rxf7 $14) 36... Re1 {[%emt 0:00:30]} 37. Rxf7+ $18 {[%emt 0:00:30]} ({And not} 37. Rxe1 Qxf6 38. Rf1 Qxh4+ 39. Kg1 Qe7 $17) 37... Qxf7 {[%emt 0:00:30]} 38. Qxf7+ {[%emt 0:00:30]} ({Don't do} 38. Rxe1 Qe7 39. Kg1 Rc7 $16) 38... Rxf7 {[%emt 0:00:30]} 39. Rxe1 {[%emt 0:00:30][%mdl 4096] Endgame KRB-KR} Ra7 {[%emt 0:00:30]} 40. Re2 {[%emt 0:00:30]} g5 {[%emt 0:00:30]} 41. hxg5 {[%emt 0:00:30] [#] Bh3 is the strong threat.} Kg6 {[%emt 0:00:30]} 42. Rf2 {[%emt 0:00:30]} Kxg5 {[%emt 0:00:30]} 43. Bf1 {[%emt 0:00:30]} Ra3 {[%emt 0:00:30]} 44. Kg2 {[%emt 0:00:30]} h4 {[%emt 0:00:30]} 45. Kh2 {[%emt 0:00:30] Against h3} Rc3 {[%emt 0:00:30]} 46. Rf5+ {[%emt 0:00:30]} ({White should try} 46. a4 $18) 46... Kg6 $16 {[%emt 0:00:30]} 47. Rf2 {[%emt 0:00:30]} ({White should play} 47. a4 $16) 47... d3 $2 {[%emt 0:00:30][%mdl 40960] Weighted Error Value: White=0.14 (very precise) /Black=0.20 (precise) . An unexpected result.} (47... Kg5 $1 $11 {and Black has nothing to worry.}) 1/2-1/2

[Event "13th KIIT Festival-A 2022"]
[Site "Bhubaneswar"]
[Date "2022.05.28"]
[Round "9.16"]
[White "Daksh Goyal"]
[Black "Konguvel, Ponnuswamy"]
[Result "1-0"]
[ECO "A27"]
[WhiteElo "1795"]
[BlackElo "2331"]
[Annotator "TA"]
[PlyCount "83"]
[EventDate "2022.05.15"]
[EventType "swiss"]
[EventCountry "IND"]
[SourceTitle "playchess.com"]
[Source "ChessBase"]
[SourceQuality "1"]
[TimeControl "5400+30"]

{[%evp 11,83,-6,2,-6,3,0,6,10,19,6,14,0,25,26,22,31,47,31,15,18,21,28,26,16,28,35,186,192,186,178,188,185,188,185,244,170,173,146,158,139,139,114,145,110,143,87,96,21,221,225,212,185,191,170,199,143,143,137,290,301,298,228,258,269,267,270,269,268,346,346,342,343,700,689]} 1. c4 {[%emt 0:00:13]} e5 {[%emt 0:00:58]} 2. Nc3 {[%emt 0:00:06]} Nc6 {[%emt 0:00:08]} 3. Nf3 {[%emt 0:00:07]} g6 {[%emt 0:00:12]} 4. d4 {[%emt 0:07:08]} exd4 {[%emt 0:00:19]} 5. Nxd4 {[%emt 0:00:16]} Bg7 {[%emt 0:00:09]} 6. e3 {[%emt 0:05:41]} Nge7 {[%emt 0:01:26]} 7. Nf3 {[%emt 0:07:46] A27: English Opening: Three Knights Variation.} d6 {[%emt 0:02:52]} 8. Be2 {[%emt 0:02:09]} O-O {[%emt 0:00:17]} 9. O-O {[%emt 0:03:24] The position is equal.} h6 {[%emt 0:31:34] [#]} 10. Qc2 $146 {[%emt 0:07:46]} ({Predecessor:} 10. Qd2 Be6 11. Rd1 Ne5 12. b3 f5 13. Bb2 a6 14. Nd4 Bd7 15. f4 N5c6 16. Bf3 Nxd4 17. exd4 {1-0 (59) Ocana Lameiro,O (1982)-Ingunza Curro,A (1670) Madrid 2017}) 10... Bf5 {[%emt 0:57:35]} 11. Qb3 {[%emt 0:07:37]} Na5 {[%emt 0:00:00]} 12. Qa3 {[%emt 0:06:30]} c5 {[%emt 0:00:00]} 13. Bd2 {[%emt 0:08:10]} Nac6 {[%emt 0:00:00]} 14. Rad1 {[%emt 0:04:32]} a6 {[%emt 0:00:00][%cal Ob7b5]} 15. e4 {[%emt 0:08:13]} Bg4 {[%emt 0:00:00]} 16. Bf4 $36 {[%emt 0:05:38][%mdl 2048] White fights for an advantage.} Bxf3 {[%emt 0:00:00]} 17. Rxd6 {[%emt 0:02:11]} (17. gxf3 Nd4 18. b4 cxb4 19. Qxb4 Nec6 $17) 17... Qc7 {[%emt 0:00:00] aiming for ...Bxe2.} 18. gxf3 {[%emt 0:02:31]} Be5 $2 {[%emt 0:00:00]} (18... g5 $14 19. Bg3 f5) 19. Bxe5 $18 {[%emt 0:01:26]} Nxe5 {[%emt 0:00:00]} 20. Rfd1 {[%emt 0:03:11]} b6 {[%emt 0:00:00] [#]} 21. b4 $1 {[%emt 0:04:53]} cxb4 {[%emt 0:00:00]} 22. Qxb4 {[%emt 0:00:21]} N7c6 {[%emt 0:00:00]} (22... Rfd8 $142 23. Qxb6 Qxb6 24. Rxb6 Rxd1+ 25. Nxd1 g5) 23. Nd5 {[%emt 0:03:35]} Nxb4 {[%emt 0:00:00]} 24. Nxc7 {[%emt 0:00:02]} Rac8 {[%emt 0:02:09]} 25. Nd5 {[%emt 0:02:14] White is more active.} Nxd5 {[%emt 0:00:04]} 26. cxd5 {[%emt 0:01:18]} (26. R1xd5 Nxc4 27. Bxc4 Rxc4 $16) 26... Rc2 {[%emt 0:00:02]} 27. Kf1 {[%emt 0:00:37]} g5 {[%emt 0:00:29]} 28. a4 {[%emt 0:03:11]} (28. Bxa6 $6 Rb2 $14) ({White should play} 28. Rxh6 Ng6 29. f4 (29. Bxa6 Kg7 $16) 29... Nxf4 30. Bg4 (30. Bxa6 f6 $14)) 28... Rb2 {[%emt 0:00:29]} 29. Rc1 {[%emt 0:00:30]} (29. Bxa6 Nxf3 30. Rxh6 Kg7 $14) (29. Rf6 $16) 29... Ng6 $2 {[%emt 0:00:05]} (29... Kg7 $11) 30. Bxa6 {[%emt 0:01:10]} Kg7 {[%emt 0:00:40]} 31. Rdc6 {[%emt 0:00:57]} Ne5 {[%emt 0:00:44]} 32. R6c3 {[%emt 0:01:16]} f5 {[%emt 0:00:26]} 33. exf5 {[%emt 0:01:31]} ({White should try} 33. Rc7+ $18 Kf6 {[#]} 34. R7c6+ $1 {[%mdl 512]} Kg7 35. Rc7+ Kf6 36. Be2) 33... Rxf5 $16 {[%emt 0:00:09]} 34. Be2 {[%emt 0:00:28] Strongly threatening Rd1.} Rf6 $2 {[%emt 0:00:17]} (34... Rd2 $16) 35. Re3 $18 {[%emt 0:00:17]} Nf7 {[%emt 0:02:05]} 36. Rc6 {[%emt 0:00:30]} Rd2 {[%emt 0:01:09]} 37. Ree6 {[%emt 0:00:50]} Rf4 {[%emt 0:00:40]} 38. Rg6+ {[%emt 0:00:27]} ({Weaker is} 38. Rxb6 Rxa4 39. Re4 Ra1+ 40. Kg2 Raa2 $16) 38... Kh7 {[%emt 0:00:17]} 39. Rgf6 {[%emt 0:00:32]} ({Not} 39. Rxb6 Rxa4 40. Rge6 Kg7 $16) 39... Rxd5 {[%emt 0:01:38]} 40. Bc4 {[%emt 0:00:44]} ({Don't play} 40. Rxb6 Rxf6 41. Rxf6 Nd6 $18) 40... Rd7 {[%emt 0:02:49]} 41. Rxf4 {[%emt 0:00:20]} Ne5 {[%emt 0:00:37]} (41... gxf4 42. Rxb6 Ne5) 42. Rff6 {[%emt 0:00:25] Weighted Error Value: White=0.14 (very precise) /Black=0.42} 1-0

[Event "13th KIIT Festival-A 2022"]
[Site "Bhubaneswar"]
[Date "2022.05.28"]
[Round "9.17"]
[White "Nayak Rajesh"]
[Black "Chakrabarty, Debasis"]
[Result "1-0"]
[ECO "C56"]
[WhiteElo "2179"]
[BlackElo "2008"]
[Annotator "TA"]
[PlyCount "149"]
[EventDate "2022.05.15"]
[EventType "swiss"]
[EventCountry "IND"]
[SourceTitle "playchess.com"]
[Source "ChessBase"]
[SourceQuality "1"]
[TimeControl "5400+30"]

{[%evp 16,149,16,26,43,30,48,39,44,12,24,59,28,39,47,0,27,19,54,30,27,8,6,0,0,0,61,61,62,64,72,35,35,35,36,36,43,41,34,7,9,11,17,17,16,17,89,88,89,89,103,108,120,39,173,170,170,165,215,215,243,249,288,265,456,248,252,249,302,286,569,369,343,290,278,252,227,202,254,202,247,202,253,252,253,253,253,253,290,290,414,414,414,403,368,238,331,335,460,460,460,448,418,410,545,418,6412,6412,1371,595,586,469,595,560,537,526,29971,29972,29972,29973,29979,29978,29978,29975,29975,29976,29977,29978,29985,29986,29986,29987,29987,29988,29988,29989]} 1. e4 {[%emt 0:02:08]} e5 {[%emt 0:00:56]} 2. Nf3 {[%emt 0:00:13]} Nc6 {[%emt 0:00:05]} 3. d4 {[%emt 0:00:15]} exd4 {[%emt 0:00:19]} 4. Bc4 {[%emt 0:00:13]} Nf6 {[%emt 0:00:34]} 5. O-O {[%emt 0:00:50]} Nxe4 {[%emt 0:06:07]} 6. Re1 {[%emt 0:00:09]} d5 {[%emt 0:00:03]} 7. Bxd5 {[%emt 0:00:07]} Qxd5 {[%emt 0:00:06]} 8. Nc3 {[%emt 0:00:04]} Qd8 {[%emt 0:02:04]} 9. Rxe4+ {[%emt 0:11:10]} Be6 {[%emt 0:05:16] C56: Two Knights: 4 d4 exd4 5 0-0 Nxe4.} 10. Nxd4 {[%emt 0:04:52]} Nxd4 {[%emt 0:05:25]} 11. Rxd4 {[%emt 0:00:22]} Qf6 {[%emt 0:05:09] [#] White is slightly better.} (11... Bd6 12. Ne4 $16) 12. Qd3 $146 {[%emt 0:47:03]} ({Predecessor:} 12. Nb5 Bd6 13. Rxd6 cxd6 14. Qxd6 Rc8 15. Nc7+ Rxc7 16. Qxc7 O-O 17. Qf4 Rd8 18. Qf3 Qxf3 19. gxf3 {½-½ (27) Dewangan,A (1440)-Zheng,H (1765) South Normanton 2019}) 12... Be7 {[%emt 0:07:52]} 13. Qb5+ {[%emt 0:06:02]} c6 {[%emt 0:00:19]} 14. Qxb7 {[%emt 0:00:10]} O-O {[%emt 0:00:21]} 15. Rf4 {[%emt 0:02:49]} (15. Be3 $14 Rab8 16. Qxa7) 15... Qg6 {[%emt 0:00:59][%cal Oe6h3]} 16. Qxc6 {[%emt 0:06:41]} ({Of course not} 16. Qxe7 Rfe8 17. Qxe8+ Rxe8 $17) 16... Rad8 {[%emt 0:01:52]} 17. Qe4 {[%emt 0:01:31]} f5 {[%emt 0:00:28]} 18. Qe2 {[%emt 0:01:47]} Bd6 {[%emt 0:01:51]} 19. Rf3 {[%emt 0:00:42][%cal Oc1g5]} f4 {[%emt 0:08:25]} 20. h3 {[%emt 0:01:32]} Rfe8 {[%emt 0:03:41]} (20... Bb8 $11) 21. Bxf4 $14 {[%emt 0:06:49] Black must now prevent Rg3.} Bd5 $1 {[%emt 0:05:08]} 22. Rg3 $1 {[%emt 0:00:16]} Qf7 {[%emt 0:00:37] [#]} 23. Re3 {[%emt 0:05:08] Hoping for Bxd6.} Bc4 $1 {[%emt 0:07:23] This bishop pair is nice.} 24. Rxe8+ {[%emt 0:00:13]} Rxe8 {[%emt 0:00:20] [#]} 25. Qxe8+ {[%emt 0:00:05]} Qxe8 {[%emt 0:00:54]} 26. Bxd6 {[%emt 0:00:07]} Qg6 {[%emt 0:00:50][%csl LRc2,LRd6]} 27. Be5 {[%emt 0:00:08]} Be6 {[%emt 0:02:51]} 28. Nd1 {[%emt 0:01:05]} Qxc2 {[%emt 0:01:59]} 29. Ne3 {[%emt 0:00:15]} Qe4 {[%emt 0:00:33]} 30. Bc3 {[%emt 0:01:09]} g5 {[%emt 0:00:54]} (30... Bxa2 $1 $11 31. Nf1 Qe6) 31. Rd1 {[%emt 0:00:36]} h5 {[%emt 0:00:50]} 32. a3 {[%emt 0:00:22]} g4 {[%emt 0:01:13]} 33. hxg4 {[%emt 0:00:07]} hxg4 {[%emt 0:00:30][%cal Og4g3]} 34. Rd4 {[%emt 0:00:11]} (34. Rd8+ $1 $16 Kf7 35. Rd4) 34... Qb1+ {[%emt 0:00:33] [#] Black cannot hold the game after this.} (34... Qg6 $1 $14) 35. Kh2 $1 $18 {[%emt 0:00:25]} Qh7+ {[%emt 0:00:58] [#]} 36. Kg3 $1 {[%emt 0:00:05]} (36. Kg1 $6 Qg6 $14) 36... Qc7+ {[%emt 0:00:45]} (36... Kf8 $142 37. Nxg4 Qc7+ 38. f4 Qh7) 37. Rf4 {[%emt 0:00:10]} Kh7 {[%emt 0:01:19]} 38. Nxg4 {[%emt 0:00:32]} Kg6 {[%emt 0:03:26]} 39. Ne5+ {[%emt 0:00:24]} Kh5 $2 {[%emt 0:01:05]} (39... Kg7 40. f3 Kg8) 40. Rh4+ {[%emt 0:01:29]} (40. Rf6 $142 Qe7 41. Ng6 Qxf6 42. Nf4+ Qxf4+ 43. Kxf4) 40... Kg5 {[%emt 0:00:18]} 41. f3 {[%emt 0:01:34] Threatens to win with Bd2+.} a5 {[%emt 0:01:20]} 42. Rh8 {[%emt 0:00:42]} ({But not} 42. f4+ Kf5 43. Nf3 Bf7 $18) 42... a4 $2 {[%emt 0:00:31]} (42... Qd6 43. Ra8 Kf5 44. Rxa5 Bb3) 43. Rh4 {[%emt 0:00:07]} Bb3 {[%emt 0:01:34]} 44. Rd4 {[%emt 0:01:01]} Kf5 {[%emt 0:01:05]} 45. Rf4+ {[%emt 0:00:21]} Ke6 {[%emt 0:06:13]} 46. Rh4 {[%emt 0:00:14]} Bc2 {[%emt 0:01:55]} 47. Rc4 {[%emt 0:00:29]} Qb8 {[%emt 0:00:21]} 48. Kf2 {[%emt 0:00:23]} Bb3 {[%emt 0:01:28]} 49. Rc6+ {[%emt 0:00:09]} Kd5 {[%emt 0:00:28] [#]} 50. Rc5+ $3 {[%emt 0:00:14][%mdl 512]} Ke6 {[%emt 0:00:57]} 51. Nc6 {[%emt 0:00:22]} Qf4 {[%emt 0:01:09]} 52. Nd4+ {[%emt 0:00:33]} Kd6 {[%emt 0:01:13]} (52... Kd7 {might work better.} 53. Nxb3 Qh4+ 54. Ke3 Qh6+ 55. Ke4 Qg6+ 56. Rf5 Qe6+ 57. Re5 Qxb3) 53. Nxb3 {[%emt 0:01:09] Threatening mate with Be5+.} Qh4+ {[%emt 0:00:31]} 54. Ke3 {[%emt 0:00:36]} axb3 {[%emt 0:00:28][%mdl 4096] Endgame KQ-KRB} 55. Ra5 {[%emt 0:00:19]} Kc6 {[%emt 0:00:51]} 56. g4 {[%emt 0:00:17]} Qg3 {[%emt 0:01:29]} 57. Rf5 {[%emt 0:00:10]} Qg1+ {[%emt 0:01:18]} 58. Kd3 {[%emt 0:00:14]} Qf1+ {[%emt 0:00:24]} 59. Kd4 {[%emt 0:00:08]} Qe2 {[%emt 0:00:51]} 60. a4 {[%emt 0:00:18]} Kb6 {[%emt 0:02:50]} (60... Qf2+ $142 61. Kc4 Qe2+ 62. Kxb3 Qe6+ 63. Ka3 Qe3) 61. Rf6+ {[%emt 0:00:15]} Kb7 {[%emt 0:00:21]} 62. Kc5 {[%emt 0:00:11]} (62. g5 $142 {And now g6 would win.} Qe8 63. a5 Qd8+ 64. Kc5 Qe7+ 65. Kc4) 62... Qe7+ {[%emt 0:01:25]} 63. Kc4 {[%emt 0:00:10] g5 would kill now.} Qd7 {[%emt 0:00:59]} 64. Kxb3 {[%emt 0:00:27]} Qd5+ {[%emt 0:00:28]} 65. Kb4 {[%emt 0:00:30]} Qd8 {[%emt 0:00:23]} 66. g5 {[%emt 0:01:02][%cal Bg4g5,Bg5g6,Bg6g7][%mdl 32] White mates.} Qe7+ {[%emt 0:02:08]} 67. Kb3 {[%emt 0:00:09]} Qd7 {[%emt 0:00:41]} 68. g6 {[%emt 0:00:12]} Qd1+ {[%emt 0:00:11]} 69. Kb4 {[%emt 0:00:08]} Qd8 {[%emt 0:01:04]} 70. g7 {[%emt 0:00:16]} Qe8 {[%emt 0:00:57]} 71. Rf8 {[%emt 0:00:56]} Qe7+ {[%emt 0:00:35]} 72. Kb3 {[%emt 0:00:06]} Qe6+ {[%emt 0:00:20]} 73. Ka3 {[%emt 0:00:05]} Qd6+ {[%emt 0:01:12]} 74. Ka2 {[%emt 0:00:11]} Qd1 {[%emt 0:00:27]} 75. b3 {[%emt 0:00:21] Weighted Error Value: White=0.22 (precise) /Black=0.38} 1-0